Cogmind - Beta 13 @@@ ROGUE MODE // 2024.04.20 @ 13:01:02 Player: Sweaty Result: Destroyed by TB-6EV(M) with Barrage Gun Performance ------------- Evolutions (1) 500 Regions Visited (4) 800 Robots Destroyed (25) 125 Value Destroyed (513) 513 Prototype IDs (0) 0 Alien Tech Used (0) 0 Bonus (19) 19 TOTAL SCORE: 1957 Bonus ------- Follower Combat Kills 50 Friendly Fire -31 Cogmind --------- Core Integrity 0/400 Matter 40/300 Energy 85/100 System Corruption 0% Temperature Cool (4) Movement Core (200) Ox3 Location -7/Zion Parts ------- > --- POWER (1) -------- (None) > --- PROPULSION (3) --- (None) > --- UTILITY (3) ------ Medium Storage Unit Improved Targeting Computer > --- WEAPON (2) ------- Mining Laser > --- INVENTORY (10) --- Ion Engine Improved Targeting Computer Improved Targeting Computer Shotgun Peak State ------------ > --- POWER ------------ Improved Deuterium Engine > --- PROPULSION ------- Light Treads Aluminum Leg Aluminum Leg > --- UTILITY ---------- Medium Storage Unit Improved Targeting Computer Core Shielding > --- WEAPON ----------- Shotgun Barrage Gun > --- INVENTORY -------- Ion Engine Ion Engine Improved Aluminum Leg Improved Targeting Computer Improved Targeting Computer Shotgun Shotgun Shotgun Mining Laser [Rating: 17] Favorites ----------- Power Ion Engine Engine Ion Engine Propulsion Aluminum Leg Treads Light Treads Leg Aluminum Leg Utility Improved Targeting Computer Storage Medium Storage Unit Processor Improved Targeting Computer Protection Core Shielding Weapon Shotgun Energy Gun Small Laser Ballistic Gun Shotgun Special Weapon Mining Laser Build | -11 -10 -9 -9 -7 ------- Run | Yrd Mat Mat Min Zio Slots Evolved 2 | . . 2 . . Power . | . . . . . Propulsion 1 | . . 1 . . Utility 1 | . . 1 . . Weapon . | . . . . . Parts Attached 37 | 6 2 16 5 8 Power 4 | 1 . 1 1 1 Engine 4 | 1 . 1 1 1 Core . | . . . . . Reactor . | . . . . . Propulsion 13 | 2 . 8 2 1 Treads 4 | . . 4 . . Leg 9 | 2 . 4 2 1 Wheel . | . . . . . Hover . | . . . . . Flight . | . . . . . Utility 6 | 1 1 3 1 . Device . | . . . . . Storage 2 | 1 . 1 . . Processor 2 | . 1 1 . . Hackware . | . . . . . Protection 2 | . . 1 1 . Artifact . | . . . . . Weapon 14 | 2 1 4 1 6 Energy Gun 2 | 1 . 1 . . Energy Cannon . | . . . . . Ballistic Gun 11 | 1 1 3 1 5 Ballistic Cannon . | . . . . . Launcher . | . . . . . Special Weapon 1 | . . . . 1 Impact Weapon . | . . . . . Slashing Weapon . | . . . . . Piercing Weapon . | . . . . . Special Melee Weapon . | . . . . . Unidentified Prototypes . | . . . . . Parts Lost 13 | . . 1 2 10 Power 1 | . . . . 1 Propulsion 6 | . . . 2 4 Utility 1 | . . . . 1 Weapon 5 | . . 1 . 4 Highest Loss Streak 9 | . . 1 1 9 To Critical Strikes . | . . . . . Average Slot Usage (%) 96 | . 96 95 95 97 Engine 11 | . 14 11 11 10 Treads 6 | . . 6 11 9 Leg 22 | . 28 22 17 21 Storage 11 | . 14 11 11 11 Processor 10 | . 10 11 11 11 Protection 7 | . . 10 11 11 Energy Gun 5 | . 11 1 6 . Ballistic Gun 18 | . 16 19 15 21 Naked Turns . | . . . . . Heaviest Build 27 | 13 13 22 22 27 Greatest Support 33 | 20 20 30 20 33 Greatest Overweight (x) 2 | . . 1 2 2 Average Overweight (x) . | . . . 1 . Largest Inventory Capacity 10 | 8 8 10 10 10 Average Capacity 9 | 7 8 9 10 10 Most Carried 10 | 5 8 10 10 9 Average Carried 7 | 3 6 7 9 7 Final Capacity 10 | 8 8 10 10 10 Final Carried 10 | 3 8 10 7 4 Class Distribution -------------------- 52% | Scavenger-Mutant 47% | Mutant Dominant Class ---------------- Mutant | -10/Materials Mutant | -9/Materials Scavenger-Mutant | -9/Mines Scavenger-Mutant | -7/Zion Resources | -11 -10 -9 -9 -7 ----------- Run | Yrd Mat Mat Min Zio Matter Collected 758 | 192 197 250 81 38 Remotely . | . . . . . Salvage Created 1051 | . 345 497 128 81 Parts 51 | . 17 21 5 8 Haulers Intercepted 3 | . 2 1 . . Recyclers Shooed 4 | . 2 2 . . Parts Field Recycled . | . . . . . Retrieved Matter . | . . . . . Parts Self-Destructed . | . . . . . Prevented . | . . . . . Kills | -11 -10 -9 -9 -7 ------- Run | Yrd Mat Mat Min Zio Combat Hostiles Destroyed 13 | . 5 6 2 . Guns 13 | . 5 6 2 . Classes Destroyed 9 | . 5 2 1 1 Worker 1 | . 1 . . . Hauler 3 | . 2 1 . . Recycler 4 | . 1 2 1 . Swarmer 3 | . 3 . . . Grunt 7 | . 2 4 1 . Duelist 1 | . . 1 . . Sentry 1 | . . 1 . . Demolisher 1 | . . . 1 . Zionite 4 | . . . . 4 Best Kill Streak 4 | . 4 4 1 1 Combat Bots Only 3 | . 3 3 1 . Max Kills in Single Turn 2 | . 2 1 1 1 Gunslinging . | . . . . . Exploded . | . . . . . Melee . | . . . . . Uniques/NPCs Destroyed . | . . . . . Combat | -11 -10 -9 -9 -7 -------- Run | Yrd Mat Mat Min Zio Hostile Shots Fired 188 | . 30 47 9 102 Missed 59 | . 13 14 . 32 Damage Taken 2124 | . 187 510 339 1088 Core 465 | . 61 115 35 254 Absorbed by Shields . | . . . . . Redirected to Shielding 100 | . . 45 8 47 Regen/Repaired (Parts) 40 | . . 40 . . Core Remaining (%) 87 | 100 75 . . . Volleys Fired 113 | . 37 33 6 37 Largest 2 | . 2 2 2 2 Hottest 88 | . 60 85 88 51 Shots Fired 218 | . 74 65 12 67 Gun 218 | . 74 65 12 67 Cannon . | . . . . . Launcher . | . . . . . Special . | . . . . . Kinetic 173 | . 37 60 9 67 Thermal 45 | . 37 5 3 . Explosive . | . . . . . Electromagnetic . | . . . . . Robot Hit Streak 22 | . 17 20 5 22 Robot Miss Streak 7 | . 7 2 4 3 Penetration Max . | . . . . . Secondary Targets 1 | . . . . 1 Max Gunslinging Chain 1 | . . . . 1 Shots Hit Robots 165 | . 51 49 6 59 Core Hits 48 | . 16 22 4 6 Critical Kills . | . . . . . Critical Parts Destroyed . | . . . . . Critical Strikes . | . . . . . Melee Attacks . | . . . . . Impact . | . . . . . Slashing . | . . . . . Piercing . | . . . . . Sneak Attacks . | . . . . . Combat Hostiles . | . . . . . Follow-up Attacks . | . . . . . Damage Inflicted 1496 | . 630 530 105 231 Guns 1476 | . 628 513 104 231 Cannons . | . . . . . Explosions . | . . . . . Melee . | . . . . . Ramming 20 | . 2 17 1 . Kinetic 1148 | . 366 465 86 231 Thermal 328 | . 262 48 18 . Explosive . | . . . . . Electromagnetic . | . . . . . Impact . | . . . . . Slashing . | . . . . . Piercing . | . . . . . Highest Corruption . | . . . . . Average Corruption . | . . . . . Corruption Purged . | . . . . . Corruption Blocked . | . . . . . Overload Shots . | . . . . . Overflow Damage . | . . . . . Projectiles . | . . . . . Explosions . | . . . . . Melee . | . . . . . Knockbacks . | . . . . . Impact . | . . . . . Kinetic . | . . . . . Secondary . | . . . . . Self-Inflicted Damage . | . . . . . Shots . | . . . . . Rammed . | . . . . . Targets Rammed 9 | . 1 7 1 . Kicked 9 | . 1 7 1 . Crushed . | . . . . . Highest Temperature 81 | . 81 68 36 58 Average Temperature 22 | . 38 24 17 12 Received Heat Transfer 794 | . 90 156 30 518 Siege Activations . | . . . . . Robots Corrupted . | . . . . . Combat Hostiles . | . . . . . Parts Fried . | . . . . . Impact Corruptions . | . . . . . Robots Melted . | . . . . . Combat Hostiles . | . . . . . Parts Melted 2 | . 2 . . . Heat Transferred 748 | . 600 111 37 . Parts Sabotaged . | . . . . . Parts Stolen . | . . . . . Parts Stripped . | . . . . . Power Chain Reactions . | . . . . . Alert | -11 -10 -9 -9 -7 ------- Run | Yrd Mat Mat Min Zio Peak Influence 166 | . 153 166 79 . Initial 9 | . . 9 5 . Average 35 | . 33 51 31 . Maximum Alert Level . | . . . . . Low Security (%) 100 | 100 100 100 100 . Level 1 . | . . . . . Level 2 . | . . . . . Level 3 . | . . . . . Level 4 . | . . . . . Level 5 . | . . . . . High Security . | . . . . . Max Security . | . . . . . Squads Dispatched . | . . . . . Investigation . | . . . . . Extermination . | . . . . . Reinforcement . | . . . . . Assault . | . . . . . Garrison . | . . . . . Intercept . | . . . . . Searches Triggered . | . . . . . Construction Impeded . | . . . . . Haulers Reinforced . | . . . . . Active Scanning Responses . | . . . . . Cargo Convoy Interrupts . | . . . . . Stealth | -11 -10 -9 -9 -7 --------- Run | Yrd Mat Mat Min Zio Distress Signals 2 | . . 1 1 . Communications Jammed . | . . . . . Distress Signals . | . . . . . Times Spotted 43 | . 9 15 5 14 Peak Tracking Total 11 | . 4 5 3 11 Tactical Retreats 1 | . . . . 1 Traps | -11 -10 -9 -9 -7 ------- Run | Yrd Mat Mat Min Zio Traps Triggered 2 | . . 2 . . Indirectly . | . . . . . Trap Hack Attempts . | . . . . . Triggered . | . . . . . Disarmed . | . . . . . Reprogrammed . | . . . . . Reused . | . . . . . Traps Extracted . | . . . . . Installed . | . . . . . Triggered . | . . . . . Machines | -11 -10 -9 -9 -7 ---------- Run | Yrd Mat Mat Min Zio Machines Disabled 1 | . 1 . . . Max in Single Turn 1 | . 1 . . . Machines Repaired . | . . . . . Machines Dismantled . | . . . . . Machines Sabotaged . | . . . . . Overloaded Fab Kills . | . . . . . Hacking | -11 -10 -9 -9 -7 --------- Run | Yrd Mat Mat Min Zio Machines Accessed 5 | . 4 1 . . Terminals 3 | . 3 . . . Fabricators . | . . . . . Repair Stations 1 | . . 1 . . Recycling Units 1 | . 1 . . . Scanalyzers . | . . . . . Garrison Access . | . . . . . Total Hacks 13 | . 11 2 . . Successful 8 | . 6 2 . . Failed 5 | . 5 . . . Catastrophic 1 | . 1 . . . Database Lockouts . | . . . . . Manual 8 | . 5 . . 3 Terminals 8 | . 8 . . . Fabricators . | . . . . . Repair Stations 2 | . . 2 . . Recycling Units 3 | . 3 . . . Scanalyzers . | . . . . . Garrison Access . | . . . . . Terminal Hacks 3 | . 3 . . . Level Access Points 1 | . 1 . . . Locate Traps 1 | . 1 . . . Transport Status 1 | . 1 . . . Fabricator Hacks . | . . . . . Repair Station Hacks 2 | . . 2 . . Scan Component 1 | . . 1 . . Repair 1 | . . 1 . . Recycling Unit Hacks 3 | . 3 . . . Process 1 | . 1 . . . Report Inventory 1 | . 1 . . . Retrieve Matter 1 | . 1 . . . Scanalyzer . | . . . . . Garrison Access Hacks . | . . . . . Unauthorized Hacks . | . . . . . Terminals . | . . . . . Fabricators . | . . . . . Repair Stations . | . . . . . Recycling Units . | . . . . . Scanalyzers . | . . . . . Garrison Access . | . . . . . Data Cores Recovered . | . . . . . Used . | . . . . . Hacking Detections 4 | . 4 . . . Full Trace Events . | . . . . . Feedback Events . | . . . . . Feedback Blocked . | . . . . . Robot Schematics Acquired . | . . . . . Robots Built . | . . . . . Authchips . | . . . . . Time . | . . . . . Total Robot Build Rating . | . . . . . Part Schematics Acquired . | . . . . . Parts Built . | . . . . . Authchips . | . . . . . Time . | . . . . . Total Part Build Rating . | . . . . . Parts Repaired 1 | . . 1 . . Time 26 | . . 26 . . Parts Recycled . | . . . . . Recycled Matter 182 | . 182 . . . Retrieved Matter 351 | . 351 . . . Retrieved Components . | . . . . . Parts Scanalyzed . | . . . . . Part Schematics Acquired . | . . . . . Parts Damaged . | . . . . . Bothacking | -11 -10 -9 -9 -7 ------------ Run | Yrd Mat Mat Min Zio Used RIF Installer . | . . . . . Robots Hacked . | . . . . . Non-combat . | . . . . . Combat . | . . . . . Robot Hacks Applied . | . . . . . Relay Couplers Released . | . . . . . Fabnet Peak Effective % . | . . . . . Robots Rewired . | . . . . . Allies Hacked . | . . . . . Hacks Repelled . | . . . . . Allies | -11 -10 -9 -9 -7 -------- Run | Yrd Mat Mat Min Zio Total Allies 1 | . . . 1 . Largest Group 1 | . . . 1 . Highest-Rated Group 31 | . . . 31 . Highest-Rated Ally 31 | . . . 31 . Total Orders . | . . . . . Ally Attacks 11 | . . . 11 . Total Damage 165 | . . . 165 . Kills 2 | . . . 2 . Allies Corrupted . | . . . . . Allies Melted . | . . . . . Intel | -11 -10 -9 -9 -7 ------- Run | Yrd Mat Mat Min Zio Robot Analysis Total . | . . . . . Derelict Logs Recovered 2 | . . . 1 1 Drone Launches . | . . . . . Drone Recoveries . | . . . . . Exploration | -11 -10 -9 -9 -7 ------------- Run | Yrd Mat Mat Min Zio Turns Passed 2708 | 85 753 408 623 839 Spaces Moved 1441 | 73 514 188 284 382 Core 24 | 24 . . . . Treads . | . . . . . Legs 1417 | 49 514 188 284 382 Wheels . | . . . . . Hover . | . . . . . Flight . | . . . . . Fastest Speed 50 | 50 120 120 190 120 Average Speed 155 | 96 120 127 208 188 Slowest Speed 260 | 120 120 190 260 260 Overloaded Moves . | . . . . . Propulsion Burnouts . | . . . . . Robots Hopped . | . . . . . Cave-ins Triggered . | . . . . . Exploration Rate (%) 37 | 4 56 26 62 37 Regions Visited 4 Branch Regions 2 Pre-discovered Areas 2 | . . . . 2 Known Exits Taken 1 | . 1 . . . Unknown Exits Taken 3 | 1 . 1 1 . Scrap Searched 2 | . . . 1 1 Spaces Dug . | . . . . . Terrain Destroyed . | . . . . . Melee . | . . . . . Projectile . | . . . . . AOE . | . . . . . Terrain Rammed . | . . . . . Walls Destroyed . | . . . . . Machines Disabled . | . . . . . Actions | -11 -10 -9 -9 -7 --------- Run | Yrd Mat Mat Min Zio Total 1696 | 87 576 297 303 433 Wait 52 | . 15 34 2 1 Move 1437 | 72 513 187 283 382 Hop . | . . . . . Pick Up 33 | 9 7 13 2 2 Fast Attach 3 | . . 3 . . Attach 20 | 6 1 7 2 4 Detach . | . . . . . Swap 14 | . 1 6 3 4 Drop 13 | . 1 7 4 1 Fire 113 | . 37 33 6 37 Melee . | . . . . . Ram . | . . . . . Kick 9 | . 1 7 1 . Crush . | . . . . . Escape Stasis . | . . . . . Rewire 2 | . . . . 2 Trap . | . . . . . Miscellaneous . | . . . . . Route ------- -11/Scrapyard -10/Materials (discovered 4 exits: *Mat x3 / [*Min]) -9/Materials -9/Mines (discovered 2 exits: [*Mat] / *Zio) -7/Zion History --------- Turn | Location | Event 13 | -11/Scrapyard | Discovered new exit (range 16) 86 | -11/Scrapyard | Entered Materials 306 | -10/Materials | Build established: Mutant 322 | -10/Materials | Identified exit to Materials 395 | -10/Materials | Discovered new exit (range 16) 839 | -10/Materials | Entered another Materials area 839 | -9/Materials | Evolved 2 slots: Propulsion x1, Utility x1 915 | -9/Materials | Repaired Aluminum Leg 1221 | -9/Materials | Discovered new exit (range 13) 1247 | -9/Materials | Entered Mines 1422 | -9/Mines | Discovered new exit (range 11) 1465 | -9/Mines | Received a Mining Laser from a helpful Derelict 1466 | -9/Mines | Build established: Scavenger-Mutant 1594 | -9/Mines | Learned Materials stockpile data 1613 | -9/Mines | Assembled infested the area 1643 | -9/Mines | Found a damaged Exp. Sensor Array with a note attached 1648 | -9/Mines | Found Prototype Device 1715 | -9/Mines | A Derelict revealed a hidden shortcut to a safe place 1870 | -9/Mines | Entered Zion 2062 | -7/Zion | Learned Factory stockpile data 2124 | -7/Zion | Learned location of Warlord (-4) 2277 | -7/Zion | Received a hallucinogenic algorithm 2323 | -7/Zion | Learned location of Quarantine (-2) 2563 | -7/Zion | Attacked by Zionites 2602 | -7/Zion | Core integrity fell below 50% 2706 | -7/Zion | Core integrity fell below 20% 2709 | -7/Zion | Destroyed by TB-6EV(M) with Barrage Gun Last Messages --------------- 02680_ EP-AYY(z) overheating. 02683_ Critical hit (Burn: +80). 02688_ Imp. Deuterium Engine destroyed. 02694_ GX-6HS(z) emerges from the Twisted Machinery. 02695_ AR-45C(z) pulls a Mak. Axe out of the Twisted Machinery. 02696_ GX-6HS(z) pulls a Mak. Axe out of the Twisted Machinery. 02696_ T4-ENO(z) pulls a Mak. Axe out of the Twisted Machinery. 02696_ OC-0H5(z) pulls a Mak. Hammer out of the Twisted Machinery. 02703_ LZ-XD2(z) destroyed. 02703_ Switching to secondary target: R9-WY9(M). 02704_ Aluminum Leg destroyed. 02705_ Barrage Gun destroyed. 02707_ FG-6SS(z) destroyed. 02707_ Shotgun destroyed. 02709_ Core Shielding destroyed. Map ----- +----------------------------------------------------+ | ?????????????????????????????????????????????????? | | ?????????????????????""??????????????????????????? | | ????????????????????#"" ?????????????????????????? | | ????????????????????"" ?????????????????????????? | | ????????????????????" ?????????????????????????? | | ???????????????????#" ????" ???????????????????? | | ????????????????#?#""" ""#""""??????????????????? | | ????????????????#"#""" """"""#" "?????????????? | | ???????????????""""""" """""""" "?????????????? | | ????????????????? """ """ "?????????????? | | ?????????????????? $ "" " ??????????????? | | ??????????????????"""" "" ?????????????? | | ????????????????????#""M """ ?????????????? | | ???????????????????###" """" "?????????????? | | ???????????????????#""" """"" ""????????????? | | ?????????????????###""" """""" ""????????????? | | ????????????????##"""" """ ""#???????????? | | ?????????????#### ""z "" ""#???????????? | | ?????????????#X #! """""" "#???????????? | | ?????????????# *%= """"" ""#??????????? | | ?????????????## / """" """#??????????? | | ??????????????### """ """#?????#####? | | ??????????????## "" " ""##??####"""## | | ??????????????#"" "" """####"""""""" | | ??????????????#" " Mz z """""#"""" " | | ??????????????###""" M%@zzz """""""""" | | ????????????????#"""" M! *%"""""" | | ????????????????#"#""" | | ????????????????##"##"""""" | | ?????????????????##?#"#""#" | | ????????????????????#####"" "" | | ???????????????????????#""" """" " | | ???????????????????????#"" """z"" " | | ???????????????????????#"" """""" "" | | ???????????????????????#"" ""#"" """ """ | | ??????????????????????#"#" ""###"" """" """ | | ??????????????????????#""""" ""###""""""" """ | | ?????????????????????##" """ """##"""""#"" """ | | ?????????????????????#"" """""""" """" """ | | ?????????????????????#"" "" ??"" """" | | ????????????????????""" ??" """" | | ???????????????????"" "" ??" ?? | | ??????????????????"" """""" ???" ?? | | ??????????????????" """""" ?????? ????? | | ?????????????????""" ""#""" ???????????? | | ??????????????????#" """""""##""????????????????? | | ??????????????????#"""""#"""#????????????????????? | | ??????????????????##"?""####?????????????????????? | | ?????????????????????????????????????????????????? | | ?????????????????????????????????????????????????? | +----------------------------------------------------+ Best States ------------- Heat Dissipation 28 Energy Generation 16 Energy Capacity 290 Matter Stores 300 Matter Capacity 300 Sight Range 16 Terrain Scan Density 10 Core Shielding 20 Weapon Shielding 33 Evasion (%) 55 Targeting Accuracy 6 Item Schematics ----------------- None Robot Schematics ------------------ None Fabricated ------------ Nothing Alien Tech Used ----------------- None Achievements -------------- Backstab Challenges ------------ None Game ------ Seed DeepSuperchargedBrace Manual? 0 Play Time 00:30:43 Cumulative 5.7 hours Start 2024.04.20 @ 12:21:56 End 2024.04.20 @ 13:01:02 Sessions 1 Manual Loads 0 Difficulty Rogue Special Mode None Game No. 9 Rogue 9 Adventurer 0 Explorer 0 Win Type - Total 0 Types 0/0/0/0/0/0/0/0/0 Lore% 4 Gallery% 9 Achievement% 11 Wizard Run 0 Options --------- Layout 1 ASCII 0 Keyboard 0 Movement Arrows Keybinds 0 Fullscreen 1 Font 24/Smallcaps Map View 50x35 Zoom Use 0% Tactical HUD 1 Map Filters NONE Filters NONE Steam 1 RUN: 84427dd2-d8d4-4fc8-bca1-f6018b3b17c5